[Event "December 19 Late 2023"]
[Site "https://www.chess.com"]
[Date "2023.12.19"]
[Round "5"]
[White "Filgueira, Hernan"]
[Black "Chaika, Vitalii"]
[Result "1-0"]
[Board "72"]
[TimeControl "180+1"]
[WhiteFideId "101770"]
[BlackFideId "14111802"]
[WhiteElo "2363"]
[BlackElo "2010"]
[WhiteTeam "ARG"]
[BlackTeam "UKR"]
[WhiteClock "0:00:42"]
[BlackClock "0:00:21"]

1. e4 {[%clk 0:02:59]}  d6 {[%clk 0:02:58]} 2. d4 {[%clk 0:02:58]}  c6 {[%clk 0:02:58]} 3. c4 {[%clk 0:02:56]}  Nf6 {[%clk 0:02:50]} 4. Nc3 {[%clk 0:02:56]}  e5 {[%clk 0:02:46]} 5. d5 {[%clk 0:02:55]}  Nbd7 {[%clk 0:02:43]} 6. f3 {[%clk 0:02:53]}  Be7 {[%clk 0:02:43]} 7. Nh3 {[%clk 0:02:51]}  O-O {[%clk 0:02:42]} 8. Nf2 {[%clk 0:02:51]}  a6 {[%clk 0:02:36]} 9. Be2 {[%clk 0:02:47]}  cxd5 {[%clk 0:02:32]} 10. cxd5 {[%clk 0:02:45]}  b5 {[%clk 0:02:32]} 11. b4 {[%clk 0:02:43]}  Nb6 {[%clk 0:02:30]} 12. a4 {[%clk 0:02:43]}  Nxa4 {[%clk 0:02:25]} 13. Nxa4 {[%clk 0:02:42]}  bxa4 {[%clk 0:02:26]} 14. Rxa4 {[%clk 0:02:37]}  Nd7 {[%clk 0:02:03]} 15. O-O {[%clk 0:02:34]}  Nb6 {[%clk 0:02:03]} 16. Ra5 {[%clk 0:02:34]}  Qd7 {[%clk 0:01:55]} 17. Be3 {[%clk 0:02:29]}  Bd8 {[%clk 0:01:54]} 18. Ra2 {[%clk 0:02:26]}  Bb7 {[%clk 0:01:46]} 19. Qa1 {[%clk 0:02:23]}  Bc7 {[%clk 0:01:39]} 20. Rc1 {[%clk 0:02:21]}  Rfb8 {[%clk 0:01:33]} 21. Rac2 {[%clk 0:02:18]}  Bd8 {[%clk 0:01:32]} 22. Bf1 {[%clk 0:02:08]}  f5 {[%clk 0:01:29]} 23. g3 {[%clk 0:02:05]}  g6 {[%clk 0:01:21]} 24. Bh3 {[%clk 0:01:58]}  Qf7 {[%clk 0:01:14]} 25. Qb1 {[%clk 0:01:44]}  Nd7 {[%clk 0:01:11]} 26. Rc6 {[%clk 0:01:32]}  Qf6 {[%clk 0:00:55]} 27. exf5 {[%clk 0:01:29]}  gxf5 {[%clk 0:00:54]} 28. Bxf5 {[%clk 0:01:29]}  Nf8 {[%clk 0:00:51]} 29. Ng4 {[%clk 0:01:27]}  Qe7 {[%clk 0:00:38]} 30. Be4 {[%clk 0:01:11]}  Bxc6 {[%clk 0:00:37]} 31. dxc6 {[%clk 0:01:10]}  Bb6 {[%clk 0:00:38]} 32. Bxb6 {[%clk 0:01:02]}  Rxb6 {[%clk 0:00:37]} 33. c7 {[%clk 0:01:00]}  Rc8 {[%clk 0:00:36]} 34. Qc2 {[%clk 0:00:58]}  Kg7 {[%clk 0:00:29]} 35. Bf5 {[%clk 0:00:55]}  Ne6 {[%clk 0:00:27]} 36. Qd2 {[%clk 0:00:48]}  Rxc7 {[%clk 0:00:23]} 37. Qh6+ {[%clk 0:00:47]}  Kg8 {[%clk 0:00:20]} 38. Bxe6+ {[%clk 0:00:43]}  Kh8 {[%clk 0:00:20]} 39. Rxc7 {[%clk 0:00:42]}  Qxc7 {[%clk 0:00:21]} 40. Qf8# {[%clk 0:00:42]} 1-0

[Event "December 19 Late 2023"]
[Site "https://www.chess.com"]
[Date "2023.12.19"]
[Round "5"]
[White "Rama, Tejas"]
[Black "Vlassov, Nikolai"]
[Result "0-1"]
[Board "73"]
[TimeControl "180+1"]
[WhiteFideId "30907381"]
[BlackFideId "4103360"]
[WhiteElo "2089"]
[BlackElo "2351"]
[WhiteTeam "USA"]
[BlackTeam "FID"]
[WhiteClock "0:00:01"]
[BlackClock "0:00:17"]

1. d4 {[%clk 0:02:11]}  Nf6 {[%clk 0:02:59]} 2. c4 {[%clk 0:02:08]}  Nc6 {[%clk 0:02:59]} 3. Nf3 {[%clk 0:02:06]}  e6 {[%clk 0:02:57]} 4. g3 {[%clk 0:02:05]}  Bb4+ {[%clk 0:02:56]} 5. Bd2 {[%clk 0:02:04]}  a5 {[%clk 0:02:56]} 6. Bg2 {[%clk 0:02:03]}  d6 {[%clk 0:02:55]} 7. O-O {[%clk 0:02:04]}  e5 {[%clk 0:02:55]} 8. Bg5 {[%clk 0:02:01]}  exd4 {[%clk 0:02:53]} 9. Nxd4 {[%clk 0:02:00]}  Ne5 {[%clk 0:02:47]} 10. Qc2 {[%clk 0:01:18]}  h6 {[%clk 0:02:46]} 11. Bc1 {[%clk 0:01:13]}  O-O {[%clk 0:02:43]} 12. Nc3 {[%clk 0:01:09]}  Nxc4 {[%clk 0:02:39]} 13. Ncb5 {[%clk 0:01:00]}  d5 {[%clk 0:02:33]} 14. b3 {[%clk 0:00:57]}  c6 {[%clk 0:02:11]} 15. bxc4 {[%clk 0:00:52]}  cxb5 {[%clk 0:02:11]} 16. cxb5 {[%clk 0:00:47]}  Bg4 {[%clk 0:02:11]} 17. Bb2 {[%clk 0:00:44]}  Rc8 {[%clk 0:02:09]} 18. Qd3 {[%clk 0:00:43]}  Re8 {[%clk 0:02:07]} 19. Rfc1 {[%clk 0:00:37]}  Qe7 {[%clk 0:01:50]} 20. e3 {[%clk 0:00:31]}  Bh5 {[%clk 0:01:41]} 21. Nf5 {[%clk 0:00:28]}  Qe6 {[%clk 0:01:39]} 22. Rxc8 {[%clk 0:00:22]}  Rxc8 {[%clk 0:01:38]} 23. Bh3 {[%clk 0:00:18]}  Kh8 {[%clk 0:01:28]} 24. Nxg7 {[%clk 0:00:14]}  Qxh3 {[%clk 0:01:16]} 25. Bxf6 {[%clk 0:00:15]}  Bf3 {[%clk 0:01:09]} 26. Nf5+ {[%clk 0:00:10]}  Kg8 {[%clk 0:01:06]} 27. Nh4 {[%clk 0:00:11]}  Be4 {[%clk 0:01:03]} 28. Qd1 {[%clk 0:00:11]}  Rc2 {[%clk 0:00:54]} 29. Rc1 {[%clk 0:00:10]}  Rxf2 {[%clk 0:00:47]} 30. Rc8+ {[%clk 0:00:04]}  Qxc8 {[%clk 0:00:43]} 31. Kxf2 {[%clk 0:00:05]}  Qh3 {[%clk 0:00:34]} 32. Kg1 {[%clk 0:00:06]}  Bc5 {[%clk 0:00:29]} 33. Bd4 {[%clk 0:00:05]}  Be7 {[%clk 0:00:29]} 34. Qh5 {[%clk 0:00:04]}  Bxh4 {[%clk 0:00:28]} 35. Qe2 {[%clk 0:00:03]}  Bg5 {[%clk 0:00:23]} 36. Ba1 {[%clk 0:00:01]}  Kh7 {[%clk 0:00:17]} 0-1

[Event "December 19 Late 2023"]
[Site "https://www.chess.com"]
[Date "2023.12.19"]
[Round "5"]
[White "Azali, Tannaz"]
[Black "Ibadov, Dashgyn"]
[Result "1-0"]
[Board "75"]
[TimeControl "180+1"]
[WhiteFideId "12537721"]
[BlackFideId "24107514"]
[WhiteElo "1828"]
[BlackElo "2183"]
[WhiteTeam "IRI"]
[BlackTeam "FID"]
[WhiteClock "0:00:14"]
[BlackClock "0:00:00"]

1. e4 {[%clk 0:02:57]}  e5 {[%clk 0:03:00]} 2. Nf3 {[%clk 0:02:57]}  Nc6 {[%clk 0:03:00]} 3. Bc4 {[%clk 0:02:48]}  Nf6 {[%clk 0:02:56]} 4. d3 {[%clk 0:02:47]}  Bc5 {[%clk 0:02:56]} 5. c3 {[%clk 0:02:47]}  d6 {[%clk 0:02:56]} 6. Nbd2 {[%clk 0:02:46]}  a6 {[%clk 0:02:56]} 7. Bb3 {[%clk 0:02:46]}  Ba7 {[%clk 0:02:56]} 8. h3 {[%clk 0:02:46]}  h6 {[%clk 0:02:47]} 9. Nf1 {[%clk 0:02:46]}  g5 {[%clk 0:02:44]} 10. Be3 {[%clk 0:02:42]}  Qe7 {[%clk 0:02:07]} 11. Bxa7 {[%clk 0:02:34]}  Nxa7 {[%clk 0:02:08]} 12. Ne3 {[%clk 0:02:34]}  Nc6 {[%clk 0:02:07]} 13. Qe2 {[%clk 0:02:21]}  Be6 {[%clk 0:02:02]} 14. O-O-O {[%clk 0:01:54]}  O-O-O {[%clk 0:01:52]} 15. Nd5 {[%clk 0:01:52]}  Bxd5 {[%clk 0:01:48]} 16. exd5 {[%clk 0:01:50]}  Na5 {[%clk 0:01:42]} 17. c4 {[%clk 0:01:39]}  Nxb3+ {[%clk 0:01:41]} 18. axb3 {[%clk 0:01:40]}  Rhe8 {[%clk 0:01:37]} 19. Rhe1 {[%clk 0:01:37]}  Nd7 {[%clk 0:01:26]} 20. g4 {[%clk 0:01:35]}  Nf8 {[%clk 0:01:21]} 21. d4 {[%clk 0:01:25]}  f6 {[%clk 0:01:16]} 22. Qe4 {[%clk 0:01:21]}  Qd7 {[%clk 0:01:02]} 23. dxe5 {[%clk 0:01:10]}  fxe5 {[%clk 0:01:03]} 24. h4 {[%clk 0:01:05]}  gxh4 {[%clk 0:00:39]} 25. Nxh4 {[%clk 0:01:06]}  Kb8 {[%clk 0:00:36]} 26. Rh1 {[%clk 0:00:43]}  a5 {[%clk 0:00:35]} 27. Qf5 {[%clk 0:00:38]}  Qe7 {[%clk 0:00:27]} 28. Nf3 {[%clk 0:00:31]}  Nd7 {[%clk 0:00:23]} 29. Rxh6 {[%clk 0:00:30]}  Nc5 {[%clk 0:00:23]} 30. Kc2 {[%clk 0:00:28]}  Rf8 {[%clk 0:00:19]} 31. Qg5 {[%clk 0:00:24]}  Qf7 {[%clk 0:00:15]} 32. Rh3 {[%clk 0:00:24]}  e4 {[%clk 0:00:14]} 33. Nd4 {[%clk 0:00:24]}  Qxf2+ {[%clk 0:00:15]} 34. Rd2 {[%clk 0:00:24]}  Qf1 {[%clk 0:00:09]} 35. Re3 {[%clk 0:00:22]}  Qa1 {[%clk 0:00:06]} 36. Ne6 {[%clk 0:00:18]}  Nxe6 {[%clk 0:00:04]} 37. dxe6 {[%clk 0:00:19]}  Rde8 {[%clk 0:00:05]} 38. Rxe4 {[%clk 0:00:19]}  a4 {[%clk 0:00:05]} 39. bxa4 {[%clk 0:00:14]}  Qxa4+ {[%clk 0:00:05]} 40. b3 {[%clk 0:00:10]}  Qa2+ {[%clk 0:00:05]} 41. Kc3 {[%clk 0:00:11]}  Rf3+ {[%clk 0:00:05]} 42. Re3 {[%clk 0:00:12]}  Qa1+ {[%clk 0:00:04]} 43. Kd3 {[%clk 0:00:12]}  Qb1+ {[%clk 0:00:02]} 44. Kc3 {[%clk 0:00:12]}  Qc1+ {[%clk 0:00:02]} 45. Kd3 {[%clk 0:00:13]}  Qf1+ {[%clk 0:00:01]} 46. Kc3 {[%clk 0:00:13]}  Rxe6 {[%clk 0:00:02]} 47. Qg8+ {[%clk 0:00:13]}  Ka7 {[%clk 0:00:00]} 48. Qxe6 {[%clk 0:00:14]} 1-0

[Event "December 19 Late 2023"]
[Site "https://www.chess.com"]
[Date "2023.12.19"]
[Round "5"]
[White "Omelja, Artem"]
[Black "Dubessay, Bastien"]
[Result "1-0"]
[Board "77"]
[TimeControl "180+1"]
[WhiteFideId "14119846"]
[BlackFideId "650048"]
[WhiteElo "2404"]
[BlackElo "2279"]
[WhiteTeam "UKR"]
[BlackTeam "FRA"]
[WhiteClock "0:01:42"]
[BlackClock "0:00:10"]

1. d4 {[%clk 0:02:38]}  d5 {[%clk 0:02:58]} 2. Nf3 {[%clk 0:02:29]}  Nf6 {[%clk 0:02:55]} 3. Bg5 {[%clk 0:02:29]}  c5 {[%clk 0:02:48]} 4. e3 {[%clk 0:02:28]}  Qb6 {[%clk 0:02:46]} 5. Nc3 {[%clk 0:02:27]}  Qxb2 {[%clk 0:02:25]} 6. Nb5 {[%clk 0:02:27]}  Na6 {[%clk 0:02:21]} 7. dxc5 {[%clk 0:02:21]}  Qb4+ {[%clk 0:02:02]} 8. c3 {[%clk 0:02:12]}  Qxc5 {[%clk 0:02:02]} 9. Bxf6 {[%clk 0:02:12]}  exf6 {[%clk 0:01:55]} 10. Be2 {[%clk 0:02:11]}  Be7 {[%clk 0:01:46]} 11. O-O {[%clk 0:02:09]}  O-O {[%clk 0:01:47]} 12. Rc1 {[%clk 0:02:06]}  Be6 {[%clk 0:01:44]} 13. Qa4 {[%clk 0:02:01]}  Rac8 {[%clk 0:01:32]} 14. Nfd4 {[%clk 0:01:54]}  Bd7 {[%clk 0:01:31]} 15. c4 {[%clk 0:01:52]}  dxc4 {[%clk 0:01:23]} 16. Rxc4 {[%clk 0:01:53]}  Qg5 {[%clk 0:01:11]} 17. f4 {[%clk 0:01:46]}  Rxc4 {[%clk 0:00:54]} 18. Bxc4 {[%clk 0:01:47]}  Qc5 {[%clk 0:00:50]} 19. Qb3 {[%clk 0:01:46]}  Bxb5 {[%clk 0:00:49]} 20. Nxb5 {[%clk 0:01:47]}  Nc7 {[%clk 0:00:46]} 21. Rc1 {[%clk 0:01:48]}  Nxb5 {[%clk 0:00:45]} 22. Bxf7+ {[%clk 0:01:47]}  Rxf7 {[%clk 0:00:40]} 23. Rxc5 {[%clk 0:01:48]}  Bxc5 {[%clk 0:00:41]} 24. Qxb5 {[%clk 0:01:48]}  Bxe3+ {[%clk 0:00:29]} 25. Kf1 {[%clk 0:01:46]}  Bxf4 {[%clk 0:00:25]} 26. g3 {[%clk 0:01:42]}  Be5 {[%clk 0:00:22]} 27. Qe8+ {[%clk 0:01:42]}  Rf8 {[%clk 0:00:22]} 28. Qe6+ {[%clk 0:01:43]}  Rf7 {[%clk 0:00:21]} 29. Qc8+ {[%clk 0:01:42]}  Rf8 {[%clk 0:00:20]} 30. Qxb7 {[%clk 0:01:43]}  Bd4 {[%clk 0:00:20]} 31. Qd5+ {[%clk 0:01:43]}  Rf7 {[%clk 0:00:19]} 32. Qxd4 {[%clk 0:01:44]}  g6 {[%clk 0:00:19]} 33. a4 {[%clk 0:01:40]}  Kg7 {[%clk 0:00:20]} 34. a5 {[%clk 0:01:41]}  Kg8 {[%clk 0:00:20]} 35. a6 {[%clk 0:01:42]}  Kg7 {[%clk 0:00:21]} 36. Qd5 {[%clk 0:01:42]}  Kg8 {[%clk 0:00:20]} 37. Ke2 {[%clk 0:01:42]}  Kg7 {[%clk 0:00:21]} 38. Qb7 {[%clk 0:01:42]}  Kg8 {[%clk 0:00:18]} 39. Kd3 {[%clk 0:01:43]}  Kg7 {[%clk 0:00:19]} 40. Kd4 {[%clk 0:01:44]}  Kg8 {[%clk 0:00:19]} 41. Kd5 {[%clk 0:01:44]}  Kf8 {[%clk 0:00:10]} 42. Ke6 {[%clk 0:01:42]} 1-0

[Event "December 19 Late 2023"]
[Site "https://www.chess.com"]
[Date "2023.12.19"]
[Round "5"]
[White "Lizak, Peter"]
[Black "Kovacsy, Barnabas"]
[Result "1/2-1/2"]
[Board "79"]
[TimeControl "180+1"]
[WhiteFideId "731595"]
[BlackFideId "769290"]
[WhiteElo "2420"]
[BlackElo "2130"]
[WhiteTeam "HUN"]
[BlackTeam "HUN"]
[WhiteClock "0:00:11"]
[BlackClock "0:00:40"]

1. d4 {[%clk 0:01:43]}  Nf6 {[%clk 0:02:57]} 2. Nc3 {[%clk 0:01:43]}  d5 {[%clk 0:02:56]} 3. Bf4 {[%clk 0:01:44]}  g6 {[%clk 0:02:53]} 4. e3 {[%clk 0:01:44]}  Bg7 {[%clk 0:02:52]} 5. h4 {[%clk 0:01:21]}  O-O {[%clk 0:02:47]} 6. h5 {[%clk 0:01:21]}  Ne4 {[%clk 0:02:41]} 7. Nxe4 {[%clk 0:01:20]}  dxe4 {[%clk 0:02:42]} 8. hxg6 {[%clk 0:01:20]}  hxg6 {[%clk 0:02:41]} 9. Qd2 {[%clk 0:01:15]}  c5 {[%clk 0:02:35]} 10. O-O-O {[%clk 0:01:12]}  Nc6 {[%clk 0:02:33]} 11. Ne2 {[%clk 0:00:59]}  Bg4 {[%clk 0:02:18]} 12. dxc5 {[%clk 0:00:48]}  Qxd2+ {[%clk 0:01:58]} 13. Rxd2 {[%clk 0:00:48]}  Rfd8 {[%clk 0:01:57]} 14. Rxd8+ {[%clk 0:00:42]}  Rxd8 {[%clk 0:01:56]} 15. Bh6 {[%clk 0:00:42]}  Bf6 {[%clk 0:01:48]} 16. a3 {[%clk 0:00:32]}  a5 {[%clk 0:01:19]} 17. Bf4 {[%clk 0:00:32]}  Rd5 {[%clk 0:01:17]} 18. c3 {[%clk 0:00:23]}  Rxc5 {[%clk 0:01:13]} 19. Nd4 {[%clk 0:00:18]}  Nxd4 {[%clk 0:01:10]} 20. exd4 {[%clk 0:00:17]}  Bxd4 {[%clk 0:01:11]} 21. Be3 {[%clk 0:00:17]}  Bxe3+ {[%clk 0:01:10]} 22. fxe3 {[%clk 0:00:18]}  e5 {[%clk 0:01:08]} 23. Rh4 {[%clk 0:00:16]}  f5 {[%clk 0:01:07]} 24. Rh1 {[%clk 0:00:15]}  Kg7 {[%clk 0:01:07]} 25. Kc2 {[%clk 0:00:15]}  Rd5 {[%clk 0:00:53]} 26. Bc4 {[%clk 0:00:14]}  Rd6 {[%clk 0:00:53]} 27. b4 {[%clk 0:00:14]}  axb4 {[%clk 0:00:52]} 28. axb4 {[%clk 0:00:15]}  f4 {[%clk 0:00:51]} 29. Re1 {[%clk 0:00:14]}  f3 {[%clk 0:00:51]} 30. Rg1 {[%clk 0:00:12]}  Kf6 {[%clk 0:00:49]} 31. gxf3 {[%clk 0:00:12]}  Bxf3 {[%clk 0:00:49]} 32. Bb5 {[%clk 0:00:09]}  g5 {[%clk 0:00:48]} 33. Be8 {[%clk 0:00:09]}  g4 {[%clk 0:00:48]} 34. c4 {[%clk 0:00:07]}  Kg5 {[%clk 0:00:45]} 35. c5 {[%clk 0:00:07]}  Rd8 {[%clk 0:00:42]} 36. Bb5 {[%clk 0:00:07]}  Kh4 {[%clk 0:00:41]} 37. Bc4 {[%clk 0:00:06]}  g3 {[%clk 0:00:42]} 38. Be6 {[%clk 0:00:06]}  g2 {[%clk 0:00:42]} 39. b5 {[%clk 0:00:06]}  Kg3 {[%clk 0:00:42]} 40. c6 {[%clk 0:00:06]}  bxc6 {[%clk 0:00:42]} 41. bxc6 {[%clk 0:00:07]}  Rd6 {[%clk 0:00:41]} 42. Bd7 {[%clk 0:00:07]}  Rxc6+ {[%clk 0:00:40]} 43. Bxc6 {[%clk 0:00:06]}  Kf2 {[%clk 0:00:40]} 44. Rxg2+ {[%clk 0:00:07]}  Bxg2 {[%clk 0:00:40]} 45. Kd2 {[%clk 0:00:07]}  Bf3 {[%clk 0:00:40]} 46. Bd5 {[%clk 0:00:08]}  Bg2 {[%clk 0:00:40]} 47. Bc6 {[%clk 0:00:09]}  Bf3 {[%clk 0:00:40]} 48. Bd5 {[%clk 0:00:10]}  Bg2 {[%clk 0:00:40]} 49. Bc6 {[%clk 0:00:11]} 1/2-1/2

[Event "December 19 Late 2023"]
[Site "https://www.chess.com"]
[Date "2023.12.19"]
[Round "5"]
[White "Sivakumar, Shaashwath"]
[Black "Derakhshani, Borna"]
[Result "0-1"]
[Board "81"]
[TimeControl "180+1"]
[WhiteFideId "30912156"]
[BlackFideId "12518450"]
[WhiteElo "2137"]
[BlackElo "2286"]
[WhiteTeam "USA"]
[BlackTeam "ENG"]
[WhiteClock "0:00:00"]
[BlackClock "0:01:39"]

1. d4 {[%clk 0:03:00]}  d5 {[%clk 0:02:59]} 2. c4 {[%clk 0:03:00]}  c6 {[%clk 0:02:58]} 3. Nf3 {[%clk 0:03:00]}  Nf6 {[%clk 0:02:59]} 4. e3 {[%clk 0:02:59]}  Bf5 {[%clk 0:02:59]} 5. Nc3 {[%clk 0:02:58]}  e6 {[%clk 0:03:00]} 6. Nh4 {[%clk 0:02:58]}  Be4 {[%clk 0:02:59]} 7. Qb3 {[%clk 0:02:53]}  Qc7 {[%clk 0:02:57]} 8. f3 {[%clk 0:02:50]}  Bg6 {[%clk 0:02:57]} 9. Bd2 {[%clk 0:02:46]}  Nbd7 {[%clk 0:02:56]} 10. g3 {[%clk 0:02:43]}  a5 {[%clk 0:02:54]} 11. Rc1 {[%clk 0:02:34]}  Qb6 {[%clk 0:02:50]} 12. Qxb6 {[%clk 0:02:26]}  Nxb6 {[%clk 0:02:50]} 13. cxd5 {[%clk 0:02:19]}  exd5 {[%clk 0:02:49]} 14. Kf2 {[%clk 0:02:17]}  Bb4 {[%clk 0:02:48]} 15. Nxg6 {[%clk 0:02:12]}  hxg6 {[%clk 0:02:48]} 16. Bd3 {[%clk 0:01:47]}  Bd6 {[%clk 0:02:47]} 17. h4 {[%clk 0:01:27]}  Kd7 {[%clk 0:02:41]} 18. e4 {[%clk 0:01:07]}  dxe4 {[%clk 0:02:39]} 19. fxe4 {[%clk 0:01:08]}  Bb4 {[%clk 0:02:35]} 20. Kg2 {[%clk 0:01:01]}  Rae8 {[%clk 0:02:34]} 21. Rce1 {[%clk 0:00:56]}  Nc8 {[%clk 0:02:25]} 22. a3 {[%clk 0:00:55]}  Bxc3 {[%clk 0:02:21]} 23. Bxc3 {[%clk 0:00:52]}  b6 {[%clk 0:02:21]} 24. Rhf1 {[%clk 0:00:49]}  Re7 {[%clk 0:02:22]} 25. Bd2 {[%clk 0:00:47]}  Rhe8 {[%clk 0:02:18]} 26. Bg5 {[%clk 0:00:46]}  Rf8 {[%clk 0:01:45]} 27. e5 {[%clk 0:00:32]}  Nd5 {[%clk 0:01:46]} 28. Bxe7 {[%clk 0:00:31]}  Ncxe7 {[%clk 0:01:44]} 29. Rf3 {[%clk 0:00:27]}  Ke6 {[%clk 0:01:45]} 30. Ref1 {[%clk 0:00:23]}  Nf5 {[%clk 0:01:45]} 31. Bxf5+ {[%clk 0:00:15]}  gxf5 {[%clk 0:01:45]} 32. Rc1 {[%clk 0:00:13]}  Rc8 {[%clk 0:01:43]} 33. Rf2 {[%clk 0:00:13]}  g6 {[%clk 0:01:42]} 34. Kf3 {[%clk 0:00:13]}  Ne7 {[%clk 0:01:39]} 35. Rfc2 {[%clk 0:00:13]}  Kd5 {[%clk 0:01:40]} 36. Ke3 {[%clk 0:00:13]}  Ng8 {[%clk 0:01:40]} 37. Kd3 {[%clk 0:00:12]}  Nh6 {[%clk 0:01:40]} 38. b4 {[%clk 0:00:11]}  axb4 {[%clk 0:01:41]} 39. axb4 {[%clk 0:00:11]}  Ng4 {[%clk 0:01:41]} 40. b5 {[%clk 0:00:10]}  c5 {[%clk 0:01:42]} 41. dxc5 {[%clk 0:00:09]}  Nxe5+ {[%clk 0:01:42]} 42. Ke3 {[%clk 0:00:09]}  bxc5 {[%clk 0:01:43]} 43. b6 {[%clk 0:00:05]}  Nd7 {[%clk 0:01:40]} 44. b7 {[%clk 0:00:05]}  Rb8 {[%clk 0:01:41]} 45. Rb1 {[%clk 0:00:05]}  Kc6 {[%clk 0:01:41]} 46. Rd2 {[%clk 0:00:04]}  Nb6 {[%clk 0:01:40]} 47. Rdb2 {[%clk 0:00:03]}  Nc4+ {[%clk 0:01:41]} 48. Kf4 {[%clk 0:00:03]}  Nxb2 {[%clk 0:01:41]} 49. Rxb2 {[%clk 0:00:03]}  Rxb7 {[%clk 0:01:42]} 50. Rc2 {[%clk 0:00:03]}  Rb4+ {[%clk 0:01:36]} 51. Kg5 {[%clk 0:00:03]}  Rg4+ {[%clk 0:01:37]} 52. Kf6 {[%clk 0:00:03]}  Rxg3 {[%clk 0:01:38]} 53. Kxf7 {[%clk 0:00:00]}  Kd5 {[%clk 0:01:39]} 0-1

[Event "December 19 Late 2023"]
[Site "https://www.chess.com"]
[Date "2023.12.19"]
[Round "5"]
[White "Melikhov, Evgeny V."]
[Black "Cobysters"]
[Result "1-0"]
[Board "83"]
[TimeControl "180+1"]
[WhiteFideId "4122046"]
[WhiteElo "2165"]
[BlackElo "2585"]
[WhiteTeam "GRE"]
[WhiteClock "0:00:06"]
[BlackClock "0:00:37"]

1. d4 {[%clk 0:03:00]}  Nf6 {[%clk 0:02:59]} 2. c4 {[%clk 0:03:01]}  d6 {[%clk 0:02:59]} 3. Nc3 {[%clk 0:03:00]}  Bf5 {[%clk 0:02:57]} 4. f3 {[%clk 0:02:57]}  e5 {[%clk 0:02:56]} 5. e4 {[%clk 0:02:57]}  Bg6 {[%clk 0:02:56]} 6. d5 {[%clk 0:02:55]}  Be7 {[%clk 0:02:56]} 7. Bd3 {[%clk 0:02:54]}  Nbd7 {[%clk 0:02:56]} 8. Be3 {[%clk 0:02:53]}  O-O {[%clk 0:02:49]} 9. Qd2 {[%clk 0:02:52]}  Ne8 {[%clk 0:02:49]} 10. O-O-O {[%clk 0:02:45]}  f5 {[%clk 0:02:50]} 11. exf5 {[%clk 0:02:42]}  Bxf5 {[%clk 0:02:51]} 12. Bxf5 {[%clk 0:02:42]}  Rxf5 {[%clk 0:02:51]} 13. Ne4 {[%clk 0:02:42]}  c6 {[%clk 0:02:45]} 14. Ne2 {[%clk 0:02:39]}  Rc8 {[%clk 0:02:41]} 15. N2c3 {[%clk 0:02:39]}  Qa5 {[%clk 0:02:35]} 16. Kb1 {[%clk 0:02:35]}  Nb6 {[%clk 0:02:24]} 17. Bxb6 {[%clk 0:02:07]}  axb6 {[%clk 0:02:17]} 18. dxc6 {[%clk 0:01:49]}  bxc6 {[%clk 0:02:17]} 19. c5 {[%clk 0:01:26]}  d5 {[%clk 0:02:02]} 20. Nxd5 {[%clk 0:00:54]}  cxd5 {[%clk 0:02:03]} 21. Qxd5+ {[%clk 0:00:48]}  Rf7 {[%clk 0:02:00]} 22. Qe6 {[%clk 0:00:24]}  Rxc5 {[%clk 0:01:33]} 23. Nxc5 {[%clk 0:00:20]}  Qxc5 {[%clk 0:01:33]} 24. Rc1 {[%clk 0:00:18]}  Qd6 {[%clk 0:01:34]} 25. Qb3 {[%clk 0:00:16]}  g6 {[%clk 0:01:25]} 26. Rhd1 {[%clk 0:00:16]}  Qb8 {[%clk 0:01:21]} 27. Rd7 {[%clk 0:00:14]}  Kg7 {[%clk 0:01:20]} 28. Qe6 {[%clk 0:00:11]}  Nd6 {[%clk 0:00:56]} 29. Rxe7 {[%clk 0:00:10]}  Rxe7 {[%clk 0:00:55]} 30. Qxe7+ {[%clk 0:00:11]}  Kh6 {[%clk 0:00:56]} 31. Qxe5 {[%clk 0:00:10]}  Qd8 {[%clk 0:00:55]} 32. Rd1 {[%clk 0:00:09]}  Qe8 {[%clk 0:00:43]} 33. Qf4+ {[%clk 0:00:08]}  Kg7 {[%clk 0:00:43]} 34. Qxd6 {[%clk 0:00:08]}  Qe2 {[%clk 0:00:42]} 35. Qd4+ {[%clk 0:00:08]}  Kg8 {[%clk 0:00:43]} 36. Qd8+ {[%clk 0:00:07]}  Kf7 {[%clk 0:00:37]} 37. Rd7+ {[%clk 0:00:06]}  Ke6 {[%clk 0:00:37]} 1-0

[Event "December 19 Late 2023"]
[Site "https://www.chess.com"]
[Date "2023.12.19"]
[Round "5"]
[White "Ozen, Metehan"]
[Black "Deng, Henry"]
[Result "0-1"]
[Board "85"]
[TimeControl "180+1"]
[WhiteFideId "34596054"]
[BlackFideId "30965454"]
[WhiteElo "1710"]
[BlackElo "2581"]
[WhiteTeam "TUR"]
[BlackTeam "USA"]
[WhiteClock "0:00:21"]
[BlackClock "0:00:17"]

1. c4 {[%clk 0:03:00]}  c6 {[%clk 0:02:59]} 2. d4 {[%clk 0:02:58]}  d5 {[%clk 0:03:00]} 3. Nc3 {[%clk 0:02:55]}  Nf6 {[%clk 0:02:59]} 4. Nf3 {[%clk 0:02:51]}  e6 {[%clk 0:02:58]} 5. e3 {[%clk 0:02:50]}  Nbd7 {[%clk 0:02:57]} 6. Qc2 {[%clk 0:02:47]}  Bd6 {[%clk 0:02:56]} 7. Bd3 {[%clk 0:02:47]}  O-O {[%clk 0:02:54]} 8. O-O {[%clk 0:02:46]}  dxc4 {[%clk 0:02:54]} 9. Bxc4 {[%clk 0:02:46]}  c5 {[%clk 0:02:49]} 10. d5 {[%clk 0:02:44]}  Nb6 {[%clk 0:02:48]} 11. b3 {[%clk 0:02:22]}  exd5 {[%clk 0:02:41]} 12. Be2 {[%clk 0:02:22]}  Be6 {[%clk 0:02:33]} 13. Bb2 {[%clk 0:02:20]}  Qd7 {[%clk 0:02:24]} 14. Rad1 {[%clk 0:02:17]}  Bf5 {[%clk 0:02:21]} 15. Qc1 {[%clk 0:02:15]}  a6 {[%clk 0:02:05]} 16. Qa1 {[%clk 0:02:14]}  h6 {[%clk 0:02:00]} 17. h3 {[%clk 0:02:11]}  Qe6 {[%clk 0:01:57]} 18. Nh4 {[%clk 0:02:08]}  Bh7 {[%clk 0:01:55]} 19. a4 {[%clk 0:02:06]}  a5 {[%clk 0:01:31]} 20. Nb5 {[%clk 0:01:57]}  Be7 {[%clk 0:01:31]} 21. Nf3 {[%clk 0:01:51]}  Rac8 {[%clk 0:01:23]} 22. Rfe1 {[%clk 0:01:47]}  Nbd7 {[%clk 0:01:20]} 23. Nh2 {[%clk 0:01:38]}  Bc2 {[%clk 0:01:18]} 24. Ng4 {[%clk 0:01:33]}  Bxd1 {[%clk 0:01:17]} 25. Rxd1 {[%clk 0:01:33]}  h5 {[%clk 0:01:07]} 26. Nxf6+ {[%clk 0:01:31]}  Nxf6 {[%clk 0:01:07]} 27. Bf3 {[%clk 0:01:30]}  Rfd8 {[%clk 0:01:04]} 28. Bc3 {[%clk 0:01:26]}  b6 {[%clk 0:01:03]} 29. Be5 {[%clk 0:01:25]}  Ne8 {[%clk 0:00:59]} 30. Bxh5 {[%clk 0:01:23]}  Bf6 {[%clk 0:00:57]} 31. Bxf6 {[%clk 0:01:22]}  Qxf6 {[%clk 0:00:56]} 32. Qc1 {[%clk 0:01:20]}  Qe5 {[%clk 0:00:52]} 33. Bg4 {[%clk 0:01:19]}  Rc6 {[%clk 0:00:52]} 34. f4 {[%clk 0:01:16]}  Qe7 {[%clk 0:00:50]} 35. Bf3 {[%clk 0:01:15]}  Nf6 {[%clk 0:00:50]} 36. Kh2 {[%clk 0:01:10]}  Re6 {[%clk 0:00:49]} 37. Rd3 {[%clk 0:01:08]}  Re8 {[%clk 0:00:45]} 38. Nc3 {[%clk 0:01:02]}  Rxe3 {[%clk 0:00:44]} 39. Nxd5 {[%clk 0:01:01]}  Nxd5 {[%clk 0:00:41]} 40. Rxd5 {[%clk 0:00:58]}  Rxb3 {[%clk 0:00:35]} 41. Re5 {[%clk 0:00:53]}  Qd8 {[%clk 0:00:32]} 42. Qd1 {[%clk 0:00:46]}  Rb4 {[%clk 0:00:22]} 43. Rd5 {[%clk 0:00:25]}  Qf6 {[%clk 0:00:19]} 44. f5 {[%clk 0:00:21]}  Rd4 {[%clk 0:00:17]} 0-1